fUST/lending_fUST_20250603
["ID","MTS","AMOUNT","RATE_DAILY","PERIOD"]
[363829973,1748891435587,-440.0,0.00017534,2]
[363829974,1748891435598,-440.0,0.00017534,2]
[363829975,1748891435607,-440.0,0.00017534,2]
[363829976,1748891435617,-540.78,0.00017534,2]
[363829977,1748891435627,-517.26,0.00017534,2]
[363829978,1748891435636,-440.0,0.00017534,2]
[363829979,1748891435645,-440.0,0.00017534,2]
[363829980,1748891435654,-440.0,0.00017534,2]
[363829981,1748891435663,-456.33,0.00017534,2]
[363829982,1748891435672,-403.04,0.00017534,2]
[363829983,1748891435682,-581.52,0.00017534,2]
[363829984,1748891435691,-440.0,0.00017534,2]
[363829985,1748891435700,-440.0,0.00017534,2]
[363829986,1748891435709,-440.0,0.00017534,2]
[363829987,1748891435718,-440.0,0.00017534,2]
[363829988,1748891435727,-440.0,0.00017534,2]
[363829989,1748891435736,-440.0,0.00017534,2]
[363829990,1748891435746,-440.0,0.00017534,2]
[363829992,1748891435756,-659.71892245,0.00017624,2]
[363829993,1748891435764,-440.0,0.00017807,2]
[363829994,1748891435773,-440.0,0.00017807,2]
[363829995,1748891435783,-440.0,0.00017807,2]
[363829996,1748891435792,-675.28,0.00017807,2]
[363829997,1748891435803,-440.0,0.00017808,2]
[363829999,1748891435812,-440.0,0.00017808,2]
[363830000,1748891435822,-380.0,0.00017808,2]
[363830001,1748891435831,-540.78,0.00017808,2]
[363830002,1748891435841,-517.26,0.00017808,2]
[363830003,1748891435851,-440.0,0.00017808,2]
[363830004,1748891435860,-440.0,0.00017808,2]
[363830005,1748891435870,-440.0,0.00017808,2]
[363830006,1748891435880,-581.52,0.00017808,2]
[363830007,1748891435890,-440.0,0.00017808,2]
[363830008,1748891435900,-440.0,0.00017808,2]
[363830009,1748891435910,-491.35,0.00017808,2]
[363830010,1748891435920,-440.0,0.00017808,2]
[363830011,1748891435930,-440.0,0.00017808,2]
[363830012,1748891435940,-440.0,0.00017808,2]
[363830013,1748891435950,-440.0,0.00017808,2]
[363830014,1748891435960,-420.0,0.00017963,2]
[363830015,1748891435969,-1300.34,0.00018072,3]
[363830017,1748891435979,-650.16,0.00018072,3]
[363830018,1748891435989,-325.08,0.00018072,3]
[363830019,1748891435999,-440.0,0.00018081,2]
[363830020,1748891436009,-440.0,0.00018081,2]
[363830021,1748891436022,-440.0,0.00018081,2]
[363830022,1748891436032,-675.28,0.00018081,2]
[363830023,1748891436042,-440.0,0.00018082,2]
[363830024,1748891436051,-440.0,0.00018082,2]
[363830025,1748891436061,-540.78,0.00018082,2]
[363830026,1748891436071,-517.26,0.00018082,2]
[363830027,1748891436081,-440.0,0.00018082,2]
[363830028,1748891436091,-440.0,0.00018082,2]
[363830029,1748891436101,-440.0,0.00018082,2]
[363830030,1748891436110,-581.52,0.00018082,2]
[363830031,1748891436119,-440.0,0.00018082,2]
[363830032,1748891436130,-440.0,0.00018082,2]
[363830033,1748891436142,-440.0,0.00018082,2]
[363830035,1748891436152,-440.0,0.00018082,2]
[363830036,1748891436162,-440.0,0.00018082,2]
[363830037,1748891436173,-440.0,0.00018082,2]
[363830038,1748891436183,-659.71892245,0.00018107,2]
[363830040,1748891436362,-659.71892245,0.00018348,2]
[363830041,1748891436373,-440.0,0.00018355,2]
[363830042,1748891436383,-440.0,0.00018355,2]
[363830043,1748891436392,-440.0,0.00018355,2]
[363830044,1748891436403,-675.28,0.00018355,2]
[363830045,1748891436413,-440.0,0.00018356,2]
[363830046,1748891436422,-440.0,0.00018356,2]
[363830047,1748891436434,-540.78,0.00018356,2]
[363830048,1748891436444,-517.26,0.00018356,2]
[363830050,1748891436453,-440.0,0.00018356,2]
[363830051,1748891436463,-473.15,0.00018356,2]
[363830052,1748891436472,-424.98,0.00018356,2]
[363830053,1748891436480,-581.52,0.00018356,2]
[363830054,1748891436489,-440.0,0.00018356,2]
[363830055,1748891436498,-440.0,0.00018356,2]
[363830056,1748891436506,-440.0,0.00018356,2]
[363830057,1748891436515,-440.0,0.00018356,2]
[363830058,1748891436525,-440.0,0.00018356,2]
[363830059,1748891436534,-440.0,0.00018356,2]
[363830060,1748891436545,-659.71892245,0.0001859,2]
[363830061,1748891436554,-440.0,0.00018629,2]
[363830062,1748891436563,-440.0,0.00018629,2]
[363830063,1748891436572,-440.0,0.00018629,2]
[363830064,1748891436582,-675.28,0.00018629,2]
[363830065,1748891436593,-440.0,0.0001863,2]
[363830066,1748891436602,-440.0,0.0001863,2]
[363830067,1748891436611,-540.78,0.0001863,2]
[363830068,1748891436620,-517.26,0.0001863,2]
[363830069,1748891436630,-440.0,0.0001863,2]
[363830070,1748891436640,-581.52,0.0001863,2]
[363830071,1748891436650,-440.0,0.0001863,2]
[363830072,1748891436660,-474.68,0.0001863,2]
[363830073,1748891436669,-440.0,0.0001863,2]
[363830074,1748891436679,-440.0,0.0001863,2]
[363830075,1748891436689,-440.0,0.0001863,2]
[363830076,1748891436700,-440.0,0.0001863,2]
[363830077,1748891436710,-1200.0,0.0001867,2]
[363830078,1748891436720,-160.0,0.00018683,2]
[363830079,1748891436730,-842.5625,0.00018683,2]
[363830080,1748891436740,-423.56953423,0.00018683,2]
[363830081,1748891436750,-160.0,0.00018683,2]
[363830082,1748891436759,-160.0,0.00018683,2]
[363830083,1748891436770,-212.83419937,0.00018683,2]
[363830084,1748891436780,-229.39799938,0.00018683,2]
[363830085,1748891436790,-160.0,0.00018683,2]
[363830086,1748891436799,-160.0,0.00018683,2]
[363830087,1748891436809,-160.0,0.00018683,2]
[363830088,1748891436820,-659.71892245,0.00018831,2]
[363830089,1748891436829,-3002.67399365,0.000189,2]
[363830090,1748891436840,-440.0,0.00018903,2]
[363830091,1748891436856,-440.0,0.00018903,2]
[363830092,1748891436867,-440.0,0.00018903,2]
[363830093,1748891436876,-675.28,0.00018903,2]
[363830094,1748891436886,-253.99269999,0.00018904,2]
[363830095,1748891436896,-440.0,0.00018904,2]
[363830096,1748891436906,-540.78,0.00018904,2]
[363830097,1748891436916,-517.26,0.00018904,2]
[363830098,1748891436926,-440.0,0.00018904,2]
[363830099,1748891436936,-581.52,0.00018904,2]
[363830100,1748891436945,-440.0,0.00018904,2]
[363830101,1748891436955,-440.0,0.00018904,2]
[363830102,1748891436965,-440.0,0.00018904,2]
[363830103,1748891436974,-440.0,0.00018904,2]
[363830104,1748891436984,-897.56,0.00018937,2]
[363830105,1748891436994,-165.802585,0.00018969,2]
[363830106,1748891437004,-165.802585,0.00019016,2]
[363830107,1748891437014,-165.802585,0.00019064,2]
[363830108,1748891437024,-659.71892245,0.00019072,2]
[363830109,1748891437034,-270.96,0.00019177,2]
[363830110,1748891437044,-440.0,0.00019177,2]
[363830111,1748891437053,-440.0,0.00019177,2]
[363830112,1748891437062,-675.28,0.00019177,2]
[363830113,1748891437072,-440.0,0.00019178,2]
[363830114,1748891437082,-540.78,0.00019178,2]
[363830115,1748891437097,-517.26,0.00019178,2]
[363830116,1748891437108,-440.0,0.00019178,2]
[363830118,1748891437117,-581.52,0.00019178,2]
[363830119,1748891437128,-440.0,0.00019178,2]
[363830120,1748891437141,-440.0,0.00019178,2]
[363830121,1748891437151,-430.0,0.00019178,2]
[363830122,1748891437160,-440.0,0.00019178,2]
[363830123,1748891437170,-440.0,0.00019178,2]
[363830124,1748891437180,-659.71892245,0.00019314,2]
[363830125,1748891437190,-440.0,0.00019451,2]
[363830126,1748891437200,-440.0,0.00019451,2]
[363830127,1748891437211,-675.28,0.00019451,2]
[363830128,1748891437221,-440.0,0.00019452,2]
[363830129,1748891437230,-540.78,0.00019452,2]
[363830130,1748891437240,-517.26,0.00019452,2]
[363830131,1748891437250,-440.0,0.00019452,2]
[363830132,1748891437259,-581.52,0.00019452,2]
[363830133,1748891437269,-440.0,0.00019452,2]
[363830134,1748891437278,-440.0,0.00019452,2]
[363830135,1748891437287,-440.0,0.00019452,2]
[363830136,1748891437297,-440.0,0.00019452,2]
[363830137,1748891437307,-659.71892245,0.00019555,2]
[363830138,1748891437316,-173.12461627,0.00019618,2]
[363830139,1748891437326,-524.653,0.00019618,2]
[363830140,1748891437336,-346.83841469,0.00019626,2]
[363830141,1748891437349,-587.0,0.00019631,2]
[363830142,1748891437358,-440.0,0.00019725,2]
[363830143,1748891437368,-440.0,0.00019725,2]
[363830144,1748891437378,-675.28,0.00019725,2]
[363830145,1748891437388,-440.0,0.00019726,2]
[363830146,1748891437398,-540.78,0.00019726,2]
[363830147,1748891437408,-517.26,0.00019726,2]
[363830148,1748891437417,-440.0,0.00019726,2]
[363830149,1748891437427,-581.52,0.00019726,2]
[363830150,1748891437437,-502.77,0.00019726,2]
[363830151,1748891437447,-440.0,0.00019726,2]
[363830152,1748891437457,-440.0,0.00019726,2]
[363830153,1748891437467,-440.0,0.00019726,2]
[363830154,1748891437476,-1200.0,0.00019766,2]
[363830155,1748891437486,-659.71892245,0.00019797,2]
[363830156,1748891437495,-440.0,0.00019999,2]
[363830157,1748891437505,-440.0,0.00019999,2]
[363830158,1748891437514,-675.28,0.00019999,2]
[363830159,1748891437525,-3000.0,0.0002,2]
[363830160,1748891437535,-440.0,0.0002,2]
[363830161,1748891437545,-540.78,0.0002,2]
[363830162,1748891437555,-517.26,0.0002,2]
[363830163,1748891437565,-440.0,0.0002,2]
[363830164,1748891437574,-581.52,0.0002,2]
[363830165,1748891437583,-440.0,0.0002,2]
[363830166,1748891437595,-440.0,0.0002,2]
[363830167,1748891437605,-440.0,0.0002,2]
[363830168,1748891437615,-3000.0,0.0002001,2]
[363830169,1748891437625,-3000.0,0.0002002,2]
[363830170,1748891437635,-3000.0,0.0002003,2]
[363830171,1748891437644,-659.71892245,0.00020038,2]
[363830172,1748891437655,-3000.0,0.0002004,2]
[363830173,1748891437664,-3000.0,0.0002005,2]
[363830174,1748891437674,-3000.0,0.0002006,2]
[363830175,1748891437683,-3000.0,0.0002007,2]
[363830176,1748891437693,-3000.0,0.0002008,2]
[363830177,1748891437702,-3000.0,0.0002009,2]
[363830178,1748891437712,-3000.0,0.000201,2]
[363830180,1748891437722,-3000.0,0.0002011,2]
[363830181,1748891437732,-3000.0,0.0002012,2]
[363830182,1748891437741,-3000.0,0.0002013,2]
[363830183,1748891437750,-3000.0,0.0002014,2]
[363830184,1748891437760,-3000.0,0.0002015,2]
[363830185,1748891437769,-3000.0,0.0002016,2]
[363830186,1748891437779,-3110.993199,0.0002017,2]
[363830187,1748891437788,-290.84,0.00020273,2]
[363830188,1748891437798,-540.78,0.00020273,2]
[363830189,1748891437807,-517.26,0.00020273,2]
[363830190,1748891437817,-440.0,0.00020273,2]
[363830191,1748891437826,-581.52,0.00020273,2]
[363830192,1748891437835,-440.0,0.00020273,2]
[363830193,1748891437847,-440.0,0.00020273,2]
[363830194,1748891437857,-440.0,0.00020273,2]
[363830195,1748891437866,-440.0,0.00020273,2]
[363830196,1748891437876,-440.0,0.00020273,2]
[363830197,1748891437886,-675.28,0.00020273,2]
[363830198,1748891437896,-659.71892245,0.00020279,3]
[363830199,1748891437905,-346.83841467,0.0002052,2]
[363830200,1748891437915,-659.71892245,0.00020521,3]
[363830201,1748891437924,-500.0,0.0002054,2]
[363830202,1748891437933,-540.78,0.00020547,2]
[363830204,1748891437943,-517.26,0.00020547,2]
[363830206,1748891437953,-500.0,0.00020547,2]
[363830208,1748891437963,-440.0,0.00020547,2]
[363830210,1748891437972,-581.52,0.00020547,2]
[363830212,1748891437982,-440.0,0.00020547,2]
[363830214,1748891437991,-440.0,0.00020547,2]
[363830215,1748891438000,-440.0,0.00020547,2]
[363830217,1748891438009,-440.0,0.00020547,2]
[363830218,1748891438019,-440.0,0.00020547,2]
[363830219,1748891438029,-675.28,0.00020547,2]
[363830220,1748891438038,-592.93,0.000206,2]
[363830221,1748891438048,-1286.17,0.000206,2]
[363830222,1748891438058,-6081.59,0.000206,2]
[363830223,1748891438067,-1795.11,0.00020659,2]
[363830224,1748891438077,-659.71892245,0.00020762,3]
[363830225,1748891438087,-540.78,0.00020821,2]
[363830226,1748891438102,-517.26,0.00020821,2]
[363830227,1748891438112,-440.0,0.00020821,2]
[363830229,1748891438121,-581.52,0.00020821,2]
[363830231,1748891438135,-440.0,0.00020821,2]
[363830233,1748891438146,-440.0,0.00020821,2]
[363830234,1748891438155,-440.0,0.00020821,2]
[363830235,1748891438165,-440.0,0.00020821,2]
[363830236,1748891438175,-442.92,0.00020821,2]
[363830238,1748891438187,-675.28,0.00020821,2]
[363830239,1748891438197,-1200.0,0.00020862,2]
[363830240,1748891438208,-500.0,0.00020943,2]
[363830241,1748891438217,-500.0,0.00020943,2]
[363830242,1748891438227,-3000.0,0.00021,2]
[363830244,1748891438236,-218.39142063,0.00021003,4]
[363830246,1748891438246,-659.71892245,0.00021003,4]
[363830247,1748891438255,-3000.0,0.0002101,2]
[363830248,1748891438265,-3000.0,0.0002102,2]
[363830249,1748891438281,-3000.0,0.0002103,2]
[363830250,1748891438296,-3000.0,0.0002104,2]
[363830251,1748891438305,-3000.0,0.0002105,2]
[363830252,1748891438315,-500.0,0.0002106,2]
[363830254,1748891438326,-3000.0,0.0002106,2]
[363830256,1748891438337,-3000.0,0.0002107,2]
[363830258,1748891438351,-3000.0,0.0002108,2]
[363830259,1748891438361,-224.53576733,0.00021088,2]
[363830261,1748891438371,-352.91713903,0.0002109,2]
[363830263,1748891438519,-2647.08286097,0.0002109,2]
[363830264,1748891438529,-540.78,0.00021095,2]
[363830265,1748891438539,-517.26,0.00021095,2]
[363830266,1748891438548,-500.0,0.00021095,3]
[363830267,1748891438558,-440.0,0.00021095,2]
[363830268,1748891438567,-581.52,0.00021095,2]
[363830269,1748891438577,-440.0,0.00021095,2]
[363830270,1748891438587,-359.64600343,0.00021095,2]
[363830271,1748891438598,-440.0,0.00021095,2]
[363830272,1748891438608,-440.0,0.00021095,2]
[363830273,1748891438617,-675.28,0.00021095,2]
[363830274,1748891438627,-3000.0,0.000211,2]
[363830275,1748891438636,-3000.0,0.0002111,2]
[363830276,1748891438646,-3000.0,0.0002112,2]
[363830277,1748891438655,-500.0,0.00021127,2]
[363830278,1748891438665,-2346.83719064,0.0002113,2]
[363830279,1748891438692,-447.90411779,0.0002113,2]
[363830280,1748891438775,-430.0,0.00016438,2]
[363830281,1748891438784,-440.0,0.00016438,2]
[363830282,1748891438793,-440.0,0.00016712,2]
[363830283,1748891438803,-410.0,0.00016986,2]
[363830284,1748891438812,-412.66581224,0.00018904,2]
[363830285,1748891438822,-164.84418776,0.0002113,2]
[363830286,1748891438834,-40.41450381,0.0002113,2]
[363830287,1748891438843,-747.23490458,0.0002114,2]
[363830288,1748891438857,-2252.76509542,0.0002114,2]
[363830289,1748891438866,-3000.0,0.0002115,2]
[363830290,1748891438879,-3000.0,0.0002116,2]
[363830291,1748891438888,-3000.0,0.0002117,2]
[363830292,1748891438898,-3000.0,0.0002118,2]
[363830293,1748891438907,-3000.0,0.0002119,2]
[363830294,1748891438917,-3000.0,0.000212,2]
[363830295,1748891438926,-3000.0,0.0002121,2]
[363830296,1748891438936,-3000.0,0.0002122,2]
[363830297,1748891438945,-3000.0,0.0002123,2]
[363830298,1748891438955,-3000.0,0.0002124,2]
[363830299,1748891438964,-659.71892245,0.00021245,4]
[363830300,1748891438974,-3000.0,0.0002125,2]
[363830301,1748891438983,-500.0,0.00021257,2]
[363830302,1748891438993,-3000.0,0.0002126,2]
[363830303,1748891439003,-3000.0,0.0002127,2]
[363830304,1748891439013,-3000.0,0.0002128,2]
[363830305,1748891439023,-3000.0,0.0002129,2]
[363830306,1748891439032,-151.0,0.00021293,19]
[363830307,1748891439042,-3000.0,0.000213,2]
[363830308,1748891439051,-1160.7633098,0.0002131,2]
[363830309,1748891439063,-1839.2366902,0.0002131,2]
[363830310,1748891439072,-558.80121886,0.0002132,2]
[363830311,1748891439084,-1598.7687669,0.0002132,2]
[363830312,1748891439097,-440.58504513,0.0002132,2]
[363830313,1748891439241,-401.84496911,0.0002132,2]
[363830314,1748891439395,-3000.0,0.0002133,2]
[363830315,1748891439405,-3000.0,0.0002134,2]
[363830316,1748891439415,-500.0,0.00021343,2]
[363830317,1748891439424,-3000.0,0.0002135,2]
[363830318,1748891439434,-3000.0,0.0002136,2]
[363830319,1748891439443,-540.78,0.00021369,2]
[363830320,1748891439452,-517.26,0.00021369,2]
[363830321,1748891439463,-440.0,0.00021369,2]
[363830322,1748891439473,-581.52,0.00021369,2]
[363830323,1748891439482,-457.57224413,0.00021369,2]
[363830324,1748891439491,-440.0,0.00021369,2]
[363830325,1748891439501,-440.0,0.00021369,2]
[363830326,1748891439511,-675.28,0.00021369,2]
[363830327,1748891439520,-3000.0,0.0002137,2]
[363830328,1748891439529,-3000.0,0.0002138,2]
[363830329,1748891439540,-500.0,0.00021383,2]
[363830330,1748891439550,-3000.0,0.0002139,2]
[363830331,1748891439559,-3000.0,0.000214,2]
[363830332,1748891439569,-3000.0,0.0002141,2]
[363830333,1748891439579,-346.83841467,0.00021413,2]
[363830334,1748891439589,-3000.0,0.0002142,2]
[363830335,1748891439600,-3000.0,0.0002143,2]
[363830336,1748891439610,-4222.81908,0.0002144,2]
[363830337,1748891439619,-823.0,0.00021454,2]
[363830338,1748891439629,-659.71892245,0.00021486,5]
[363830339,1748891439638,-1000.0,0.00021491,2]
[363830340,1748891439647,-500.0,0.000215,2]
[363830341,1748891439656,-500.0,0.000215,2]
[363830342,1748891439666,-250.0,0.00021503,2]
[363830343,1748891439675,-151.0,0.00021583,20]
[363830344,1748891439685,-6081.59,0.000216,2]
[363830345,1748891439695,-1000.0,0.00021608,2]
[363830346,1748891439704,-540.78,0.00021643,2]
[363830347,1748891439714,-517.26,0.00021643,2]
[363830348,1748891439724,-500.0,0.00021643,4]
[363830349,1748891439733,-440.0,0.00021643,2]
[363830350,1748891439743,-581.52,0.00021643,2]
[363830351,1748891439752,-440.0,0.00021643,2]
[363830352,1748891439762,-440.0,0.00021643,2]
[363830353,1748891439771,-675.28,0.00021643,2]
[363830354,1748891439781,-1000.0,0.00021675,2]
[363830355,1748891439791,-1286.17,0.000217,2]
[363830356,1748891439801,-659.71892245,0.00021728,5]
[363830357,1748891439811,-151.0,0.00021788,2]
[363830358,1748891439821,-151.0,0.00021788,2]
[363830359,1748891439833,-207.4,0.00021788,2]
[363830360,1748891439844,-151.0,0.00021788,2]
[363830361,1748891439855,-151.0,0.00021788,2]
[363830362,1748891439866,-151.0,0.00021788,2]
[363830363,1748891439875,-500.0,0.00021788,2]
[363830364,1748891439884,-151.0,0.00021788,2]
[363830366,1748891439894,-500.0,0.00021788,2]
[363830368,1748891439904,-151.0,0.00021788,2]
[363830369,1748891439913,-226.76390347,0.00021788,2]
[363830370,1748891439923,-500.0,0.00021788,2]
[363830371,1748891439932,-500.0,0.00021788,2]
[363830372,1748891439942,-500.0,0.00021788,2]
[363830373,1748891439951,-500.0,0.00021788,2]
[363830374,1748891439960,-500.0,0.00021788,2]
[363830375,1748891439970,-500.0,0.00021788,2]
[363830376,1748891439979,-500.0,0.00021788,2]
[363830377,1748891439989,-500.0,0.00021788,2]
[363830379,1748891439998,-500.0,0.00021788,2]
[363830380,1748891440008,-500.0,0.00021788,2]
[363830382,1748891440018,-500.0,0.00021788,2]
[363830383,1748891440027,-500.0,0.00021788,2]
[363830384,1748891440037,-500.0,0.00021788,2]
[363830385,1748891440046,-500.0,0.00021788,2]
[363830386,1748891440056,-500.0,0.00021788,2]
[363830387,1748891440065,-5000.0,0.00021788,2]
[363830388,1748891440074,-500.0,0.00021788,2]
[363830389,1748891440084,-500.0,0.00021788,2]
[363830390,1748891440093,-500.0,0.00021788,2]
[363830392,1748891440104,-500.0,0.00021788,2]
[363830393,1748891440113,-500.0,0.00021788,2]
[363830394,1748891440122,-500.0,0.00021788,2]
[363830395,1748891440134,-1841.37601661,0.00021788,2]
[363830396,1748891440144,-500.0,0.00021788,2]
[363830398,1748891440154,-300.0,0.00021788,2]
[363830399,1748891440163,-300.0,0.00021788,2]
[363830400,1748891440172,-300.0,0.00021788,2]
[363830401,1748891440182,-300.0,0.00021788,2]
[363830402,1748891440196,-202.5886477,0.00021788,2]
[363830404,1748891440212,-151.632202,0.000218,2]
[363830405,1748891440223,-151.632202,0.000218,2]
[363830406,1748891440233,-410.177163,0.000218,2]
[363830407,1748891440242,-410.177163,0.000218,2]
[363830408,1748891440252,-41502.0,0.000218,2]
[363830409,1748891440262,-207.71331479,0.00021873,22]
[363830410,1748891440275,-265.70492485,0.00021891,2]
[363830411,1748891440287,-5000.0,0.00021906,2]
[363830412,1748891440297,-151.0,0.00021917,2]
[363830413,1748891440307,-160.494634,0.00021917,2]
[363830415,1748891440316,-151.0,0.00021917,2]
[363830417,1748891440326,-151.0,0.00021917,2]
[363830419,1748891440336,-151.0,0.00021917,2]
[363830421,1748891440347,-151.0,0.00021917,2]
[363830422,1748891440358,-151.0,0.00021917,2]
[363830424,1748891440368,-209.747891,0.00021917,2]
[363830425,1748891440378,-209.747891,0.00021917,2]
[363830427,1748891440388,-200.0,0.00021917,2]
[363830429,1748891440397,-500.0,0.00021917,2]
[363830431,1748891440407,-540.78,0.00021917,2]
[363830433,1748891440418,-517.26,0.00021917,2]
[363830434,1748891440428,-440.0,0.00021917,2]
[363830435,1748891440437,-581.52,0.00021917,2]
[363830436,1748891440448,-527.15,0.00021917,2]
[363830437,1748891440458,-527.15,0.00021917,2]
[363830438,1748891440468,-527.15,0.00021917,2]
[363830440,1748891440477,-527.15,0.00021917,2]
[363830442,1748891440487,-527.15,0.00021917,2]
[363830443,1748891440496,-527.15,0.00021917,2]
[363830445,1748891440506,-527.15,0.00021917,2]
[363830447,1748891440515,-527.15,0.00021917,2]
[363830449,1748891440525,-527.15,0.00021917,2]
[363830451,1748891440535,-527.15,0.00021917,2]
[363830452,1748891440544,-527.15,0.00021917,2]
[363830453,1748891440554,-527.15,0.00021917,2]
[363830454,1748891440564,-527.15,0.00021917,2]
[363830455,1748891440574,-527.15,0.00021917,2]
[363830456,1748891440584,-527.15,0.00021917,2]
[363830457,1748891440594,-527.15,0.00021917,2]
[363830458,1748891440606,-527.15,0.00021917,2]
[363830459,1748891440616,-527.15,0.00021917,2]
[363830460,1748891440626,-527.15,0.00021917,2]
[363830461,1748891440636,-527.15,0.00021917,2]
[363830462,1748891440645,-527.15,0.00021917,2]
[363830463,1748891440656,-500.0,0.00021917,2]
[363830464,1748891440665,-500.0,0.00021917,2]
[363830466,1748891440676,-500.0,0.00021917,2]
[363830468,1748891440687,-500.0,0.00021917,2]
[363830469,1748891440696,-500.0,0.00021917,2]
[363830470,1748891440706,-500.0,0.00021917,2]
[363830471,1748891440715,-500.0,0.00021917,2]
[363830472,1748891440725,-500.0,0.00021917,2]
[363830473,1748891440735,-363.35405344,0.00021917,2]
[363830474,1748891440744,-500.0,0.00021917,2]
[363830475,1748891440754,-500.0,0.00021917,2]
[363830476,1748891440764,-500.0,0.00021917,2]
[363830477,1748891440773,-500.0,0.00021917,2]
[363830478,1748891440784,-500.0,0.00021917,2]
[363830479,1748891440793,-500.0,0.00021917,2]
[363830480,1748891440803,-500.0,0.00021917,2]
[363830481,1748891440815,-500.0,0.00021917,2]
[363830482,1748891440826,-500.0,0.00021917,2]
[363830483,1748891440836,-500.0,0.00021917,2]
[363830484,1748891440848,-183.04845287,0.00021917,2]
[363830485,1748891440857,-440.0,0.00021917,2]
[363830486,1748891440867,-384.4,0.00021917,2]
[363830487,1748891440876,-675.28,0.00021917,2]
[363830488,1748891440886,-323.0767398,0.00021918,7]
[363830489,1748891440895,-150.0,0.00021918,2]
[363830490,1748891440905,-1200.0,0.00021958,2]
[363830491,1748891440916,-659.71892245,0.00021969,6]
[363830492,1748891440926,-662446.93111,0.00021999,2]
[363830493,1748891440936,-151.0,0.00021999,7]
[363830494,1748891440945,-151.0,0.00021999,7]
[363830495,1748891440955,-151.0,0.00021999,7]
[363830496,1748891440965,-151.0,0.00021999,7]
[363830497,1748891440974,-151.0,0.00021999,7]
[363830498,1748891440984,-209.747891,0.00021999,7]
[363830499,1748891440995,-209.747891,0.00021999,7]
[363830500,1748891441006,-151.0,0.00022,7]
[363830501,1748891441016,-2208.93,0.00022,2]
[363830502,1748891441026,-41860.26,0.00022,2]
[363830503,1748891441035,-187.0,0.00022,2]
[363830504,1748891441046,-171.0,0.00022,2]
[363830505,1748891441055,-238.0,0.00022,2]
[363830506,1748891441066,-285.71082714,0.00022039,2]
[363830507,1748891441075,-176.41775351,0.00022048,2]
[363830508,1748891441087,-500.0,0.00022156,2]
[363830509,1748891441097,-200.0,0.00022191,30]
[363830510,1748891441107,-540.78,0.00022191,2]
[363830511,1748891441117,-517.26,0.00022191,2]
[363830512,1748891441127,-500.0,0.00022191,5]
[363830513,1748891441141,-440.0,0.00022191,2]
[363830514,1748891441151,-581.52,0.00022191,2]
[363830515,1748891441161,-527.15,0.00022191,2]
[363830516,1748891441174,-251.00547672,0.00022191,2]
[363830517,1748891441189,-675.28,0.00022191,2]
[363830518,1748891441199,-238.0,0.00022192,7]
[363830519,1748891441209,-151.632202,0.0002221,7]
[363830520,1748891441219,-151.632202,0.0002221,7]
[363830522,1748891441228,-410.177163,0.0002221,7]
[363830523,1748891441239,-410.177163,0.0002221,7]